Workbook

Sheet P&L
A1: AGILENT TECHNOLOGIES, INC.
A2: CONDENSED CONSOLIDATED STATEMENT OF OPERATIONS
A3: (In millions, except per share amounts)
A4: (Unaudited)
A5: PRELIMINARY
B8: Three Months Ended | F8: Nine Months Ended
B9: July 31, | F9: July 31,
B10: 2020 | D10: 2019 | F10: 2020 | H10: 2019
A12: Net revenue | B12: $1,261 | D12: $1,274 | F12: $3,856 | H12: $3,796
A14: Costs and expenses:
A15: Cost of products and services | B15: 592 | D15: 582 | F15: 1,807 | H15: 1,728
A16: Research and development | B16: 92 | D16: 101 | F16: 393 | H16: 302
A17: Selling, general and administrative | B17: 347 | D17: 366 | F17: 1,109 | H17: 1,075
A18: Total costs and expenses | B18: =SUM(B15:B17) -> 1,031 | D18: =SUM(D15:D17) -> 1,049 | F18: =SUM(F15:F17) -> 3,309 | H18: =SUM(H15:H17) -> 3,105
A20: Income from operations | B20: =B12-B18 -> 230 | D20: =D12-D18 -> 225 | F20: =F12-F18 -> 547 | H20: =H12-H18 -> 691
A22: Interest income | B22: 1 | D22: 10 | F22: 7 | H22: 30
A23: Interest expense | B23: (19) | D23: (18) | F23: (59) | H23: (53)
A24: Other income (expense), net | B24: 7 | D24: 5 | F24: 64 | H24: 20
A26: Income before taxes | B26: =SUM(B20:B24) -> 219 | D26: =SUM(D20:D24) -> 222 | F26: =SUM(F20:F24) -> 559 | H26: =SUM(H20:H24) -> 688
A28: Provision (benefit) for income taxes | B28: 20 | D28: 31 | F28: 62 | H28: (189)
A30: Net income | B30: =B26-B28 -> $199 | D30: =D26-D28 -> $191 | F30: =F26-F28 -> $497 | H30: =H26-H28 -> $877
A34: Net income per share:
A35: Basic | B35: =B30/B39 -> $0.64 | D35: =D30/D39 -> $0.61 | F35: =F30/F39 -> $1.61 | H35: =H30/H39 -> $2.78
A36: Diluted | B36: =B30/B40 -> $0.64 | D36: =D30/D40 -> $0.60 | F36: =F30/F40 -> $1.59 | H36: =H30/H40 -> $2.74
A38: Weighted average shares used in computing net income per share:
A39: Basic | B39: 309 | D39: 312 | F39: 309 | H39: 316
A40: Diluted | B40: 312 | D40: 316 | F40: 312 | H40: 320
A48: The preliminary income statement is estimated based on our current information.
A51: Page 1

Sheet Balance Sheet
A1: AGILENT TECHNOLOGIES, INC.
A2: CONDENSED CONSOLIDATED BALANCE SHEET
A3: (In millions, except par value and share amounts)
A4: (Unaudited)
A5: PRELIMINARY
E8: July 31, | G8: October 31,
E9: 2020 | G9: 2019
A10: ASSETS
A12: Current assets:
B13: Cash and cash equivalents | E13: $1,358 | G13: $1,382
B14: Accounts receivable, net | E14: 930 | G14: 930
B15: Inventory | E15: 746 | G15: 679
B16: Other current assets | E16: 211 | G16: 198
C17: Total current assets | E17: =SUM(E13:E16) -> 3,245 | G17: =SUM(G13:G16) -> 3,189
A19: Property, plant and equipment, net | E19: 846 | G19: 850
A20: Goodwill and other intangible assets, net | E20: =3606+876 -> 4,482 | G20: =3593+1107 -> 4,700
A21: Long-term investments | E21: 148 | G21: 102
A22: Other assets | E22: 825 | G22: 611
C23: Total assets | E23: =SUM(E17:E22) -> $9,546 | G23: =SUM(G17:G22) -> $9,452
A25: LIABILITIES AND EQUITY
A27: Current liabilities:
B28: Accounts payable | E28: $311 | G28: $354
B29: Employee compensation and benefits | E29: 306 | G29: 334
B30: Deferred revenue | E30: 397 | G30: 336
B31: Short-term debt | E31: 40 | G31: 616
B32: Other accrued liabilities | E32: 260 | G32: 440
C33: Total current liabilities | E33: =SUM(E28:E32) -> 1,314 | G33: =SUM(G28:G32) -> 2,080
A35: Long-term debt | E35: 2,283 | G35: 1,791
A36: Retirement and post-retirement benefits | E36: 355 | G36: 360
A37: Other long-term liabilities | E37: 613 | G37: 473
C38: Total liabilities | E38: =SUM(E33:E37) -> 4,565 | G38: =SUM(G33:G37) -> 4,704
A40: Total Equity:
B41: Stockholders' equity:
B42: Preferred stock; $0.01 par value; 125 million
C43: shares authorized; none issued and outstanding | E43: — | G43: —
B44: Common stock; $0.01 par value, 2 billion
C45: shares authorized; 309 million shares at July 31, 2020
C46: and 309 million shares at October 31, 2019, issued | E46: 3 | G46: 3
B47: Additional paid-in-capital | E47: 5,324 | G47: 5,277
B48: Retained earnings (accumulated deficit) | E48: 130 | G48: (18)
B49: Accumulated other comprehensive loss | E49: (476) | G49: (514)
C50: Total stockholders' equity | E50: =SUM(E43:E49) -> 4,981 | G50: =SUM(G43:G49) -> 4,748
D51: Total liabilities and equity | E51: =E38+E50 -> $9,546 | G51: =G38+G50 -> $9,452
A55: The preliminary balance sheet is estimated based on our current information.
A58: Page 2

Sheet Cash Flow
A1: AGILENT TECHNOLOGIES, INC.
A2: CONDENSED CONSOLIDATED STATEMENT OF CASH FLOWS
A3: (In millions)
A4: (Unaudited)
A5: PRELIMINARY
F8: Nine Months Ended
F9: July 31, | H9: July 31,
F10: 2020 | H10: 2019
A11: Cash flows from operating activities:
B12: Net income | F12: $497 | H12: $877
A14: Adjustments to reconcile net income to net cash provided by (used in) operating activities:
B15: Depreciation and amortization | F15: 232 | H15: 162
B16: Share-based compensation | F16: 63 | H16: 57
B17: Excess and obsolete inventory related charges | F17: 18 | H17: 12
B18: Asset impairment charges | F18: 99 | H18: —
B19: Unrealized gain on equity securities | F19: (26) | H19: (1)
B20: Other non-cash (income) expenses, net | F20: 6 | H20: 5
B21: Changes in assets and liabilities:
C22: Accounts receivable, net | F22: 1 | H22: (58)
C23: Inventory | F23: (86) | H23: (31)
C24: Accounts payable | F24: (35) | H24: —
C25: Employee compensation and benefits | F25: (32) | H25: (35)
C26: Other assets and liabilities | F26: (193) | H26: (281)
A27: Net cash provided by operating activities (a) | F27: =SUM(F12:F26) -> 544 | H27: =SUM(H12:H26) -> 707
A29: Cash flows from investing activities:
B30: Investments in property, plant and equipment | F30: (92) | H30: (125)
B31: Proceeds from sale of property, plant and equipment | F31: 1 | H31: —
B32: Payment to acquire fair value investments | F32: (20) | H32: (21)
B33: Payment in exchange for convertible note | F33: (9) | H33: (2)
B34: Payment to acquire intangible assets | F34: — | H34: (1)
B35: Acquisition of businesses and intangible assets, net of cash acquired | F35: — | H35: (248)
A36: Net cash used in investing activities | F36: =SUM(F30:F35) -> (120) | H36: =SUM(H30:H35) -> (397)
A38: Cash flows from financing activities:
B39: Issuance of common stock under employee stock plans | F39: 56 | H39: 52
B40: Payment of taxes related to net share settlement of equity awards | F40: (34) | H40: (15)
B41: Payment of dividends | F41: (167) | H41: (155)
B42: Issuance of senior notes | F42: 499 | H42: —
B43: Debt issuance costs | F43: (4) | H43: —
B44: Proceeds from revolving credit facility | F44: 798 | H44: —
B45: Repayment of revolving credit facility and short-term loan | F45: (1,413) | H45: —
B46: Proceeds from commercial paper | F46: 240 | H46: —
B47: Repayment of commercial paper | F47: (200) | H47: —
B48: Repayment of finance lease | F48: (4) | H48: —
B49: Purchase of non-controlling interest | F49: — | H49: (4)
B50: Treasury stock repurchases | F50: (219) | H50: (674)
A51: Net cash used in financing activities | F51: =SUM(F39:F50) -> (448) | H51: =SUM(H39:H50) -> (796)
A53: Effect of exchange rate movements | F53: — | H53: 3
A55: Net decrease in cash, cash equivalents and restricted cash | F55: =F27+F36+F51 -> (24) | H55: =H27+H36+H51+H53 -> (483)
A57: Cash, cash equivalents and restricted cash at beginning of period | F57: 1,388 | H57: 2,254
A59: Cash, cash equivalents and restricted cash at end of period | F59: =SUM(F55:F57) -> $1,364 | H59: =SUM(H55:H57) -> $1,771
A62: Reconciliation of cash, cash equivalents and restricted cash to the condensed consolidated balance sheet:
B64: Cash and cash equivalents | F64: $1,358 | H64: $1,765
B65: Restricted cash, included in other assets | F65: 6 | H65: 6
B66: Total cash, cash equivalents and restricted cash | F66: =SUM(F64:F65) -> $1,364 | H66: =SUM(H64:H65) -> $1,771
A69: (a) Cash payments included in operating activities:
B71: Income tax payments (refunds), net | F71: $325 | H71: $108
B72: Interest payments | F72: $53 | H72: $61
A76: The preliminary cash flow is estimated based on our current information.
A79: Page 3

Sheet Net Income & EPS Non-GAAP
A1: AGILENT TECHNOLOGIES, INC.
A2: NON-GAAP NET INCOME AND DILUTED EPS RECONCILIATIONS
A3: (In millions, except per share amounts)
A4: (Unaudited)
A5: PRELIMINARY
E7: Three Months Ended | K7: Nine Months Ended
E8: July 31, | K8: July 31,
E9: 2020 | F9: Diluted EPS | H9: 2019 | I9: Diluted EPS | K9: 2020 | L9: Diluted EPS | N9: 2019 | O9: Diluted EPS
A11: GAAP net income | E11: $199 | F11: $0.64 | H11: $191 | I11: $0.60 | K11: $497 | L11: $1.59 | N11: $877 | O11: $2.74
B12: Non-GAAP adjustments:
C13: Asset impairments | E13: — | F13: — | H13: — | I13: — | K13: 99 | L13: 0.32 | N13: — | O13: —
C14: Intangible amortization | E14: 45 | F14: 0.15 | H14: 25 | I14: 0.08 | K14: 139 | L14: 0.45 | N14: 79 | O14: 0.25
C15: Transformational initiatives | E15: 13 | F15: 0.04 | H15: 11 | I15: 0.03 | K15: 41 | L15: 0.13 | N15: 25 | O15: 0.08
C16: Acquisition and integration costs | E16: 9 | F16: 0.03 | H16: 12 | I16: 0.04 | K16: 33 | L16: 0.11 | N16: 32 | O16: 0.10
C17: NASD site costs | E17: — | F17: — | H17: 6 | I17: 0.02 | K17: — | L17: — | N17: 12 | O17: 0.04
C18: Special compliance costs | E18: — | F18: — | H18: 1 | I18: — | K18: — | L18: — | N18: 2 | O18: 0.01
C19: Acceleration of share-based compensation expense | E19: 1 | F19: — | H19: — | I19: — | K19: 1 | L19: — | N19: — | O19: —
C20: Other | E20: 1 | F20: — | H20: 11 | I20: 0.03 | K20: (22) | L20: (0.07) | N20: 17 | O20: 0.05
C21: Tax benefit on intra-entity asset transfer | E21: — | F21: — | H21: — | I21: — | K21: — | L21: — | N21: (299) | O21: (0.93)
C22: Adjustment for taxes (a) | E22: (25) | F22: (0.08) | H22: (17) | I22: (0.04) | K22: (70) | L22: (0.23) | N22: (33) | O22: (0.11)
A23: Non-GAAP net income | E23: =SUM(E11:E22) -> $243 | F23: =SUM(F11:F22) -> $0.78 | H23: =SUM(H11:H22) -> $240 | I23: =SUM(I11:I22) -> $0.76 | K23: =SUM(K11:K22) -> $718 | L23: =SUM(L11:L22) -> $2.30 | N23: =SUM(N11:N22) -> $712 | O23: =SUM(O11:O22) -> $2.23
A26: (a) The adjustment for taxes excludes tax benefits that management believes are not directly related to on-going operations and which are either isolated or cannot be expected to occur again with any regularity or predictability. For the three and nine months ended July 31, 2020, management used a non-GAAP effective tax rate of 15.50%. For the three and nine months ended July 31, 2019, management used a non-GAAP effective tax rate of 16.67% and 16.75%, respectively.
A28: We provide non-GAAP net income and non-GAAP net income per share amounts in order to provide meaningful supplemental information regarding our operational performance and our prospects for the future. These supplemental measures exclude, among other things, charges related to asset impairments, amortization of intangibles, transformational initiatives, acquisition and integration costs, NASD site costs, special compliance costs, acceleration of shared-based compensation expense and tax benefit on intra-entity asset transfer.
B29: Asset impairments include assets that have been written down to their fair value.
B30: Transformational initiatives include expenses associated with targeted cost reduction activities such as manufacturing transfers including costs to move manufacturing due to new tariffs and tariff remediation actions, small site consolidations, legal entity and other business reorganizations, insourcing or outsourcing of activities. Such costs may include move and relocation costs, one-time termination benefits and other one-time reorganization costs. Included in this category are also expenses associated with company programs to transform our product lifecycle management (PLM) system, human resources and financial systems.
B31: Acquisition and Integration costs include all incremental expenses incurred to effect a business combination. Such acquisition costs may include advisory, legal, accounting, valuation, and other professional or consulting fees. Such integration costs may include expenses directly related to integration of business and facility operations, the transfer of assets and intellectual property, information technology systems and infrastructure and other employee-related costs.
B32: NASD site costs include all the costs related to the expansion of our manufacturing of nucleic acid active pharmaceutical ingredients incurred prior to the commencement of commercial manufacturing.
B33: Special compliance costs include costs associated with transforming our processes to implement new regulations such as data privacy regulations, revenue recognition, lease accounting and certain tax reporting requirements.
B34: Acceleration of share-based compensation expense represents stock-based compensation expense that was accelerated upon employees’ involuntary termination from the company.
B35: Other includes certain legal costs and settlements in addition to other miscellaneous adjustments.
B36: Tax benefit on intra-entity asset transfer relates to our operations in Singapore along with our application of the new accounting rules for income tax consequences of intra-entity transfer of assets as adopted on November 1, 2018.
A38: Our management uses non-GAAP measures to evaluate the performance of our core businesses, to estimate future core performance and to compensate employees. Since management finds this measure to be useful, we believe that our investors benefit from seeing our results “through the eyes” of management in addition to seeing our GAAP results. This information facilitates our management’s internal comparisons to our historical operating results as well as to the operating results of our competitors.
A40: Our management recognizes that items such as amortization of intangibles can have a material impact on our cash flows and/or our net income. Our GAAP financial statements including our statement of cash flows portray those effects. Although we believe it is useful for investors to see core performance free of special items, investors should understand that the excluded items are actual expenses that may impact the cash available to us for other uses. To gain a complete picture of all effects on the company’s profit and loss from any and all events, management does (and investors should) rely upon the GAAP income statement. The non-GAAP numbers focus instead upon the core business of the company, which is only a subset, albeit a critical one, of the company’s performance.
A42: Readers are reminded that non-GAAP numbers are merely a supplement to, and not a replacement for, GAAP financial measures. They should be read in conjunction with the GAAP financial measures. It should be noted as well that our non-GAAP information may be different from the non-GAAP information provided by other companies.
A44: The preliminary non-GAAP net income and diluted EPS reconciliation is estimated based on our current information.
A47: Page 4

Sheet Segment Results
A1: AGILENT TECHNOLOGIES, INC.
A2: SEGMENT INFORMATION
A3: (In millions, except where noted)
A4: (Unaudited)
A5: PRELIMINARY
A7: Life Sciences and Applied Markets Group
C8: Q3'20 | E8: Q3'19
A9: Revenue | C9: $557 | E9: $544
A10: Gross Margin, % | C10: 59.3% | E10: 60.5%
A11: Income from Operations | C11: $126 | E11: $118
A12: Operating margin, % | C12: 22.6% | E12: 21.7%
A15: Diagnostics and Genomics Group
C16: =C8 -> Q3'20 | E16: =E8 -> Q3'19
A17: Revenue | C17: $241 | E17: $263
A18: Gross Margin, % | C18: 49.8% | E18: 55.7%
A19: Income from Operations | C19: $41 | E19: $50
A20: Operating margin, % | C20: 17.2% | E20: 19.1%
A23: Agilent CrossLab Group
C24: =C8 -> Q3'20 | E24: =E8 -> Q3'19
A25: Revenue | C25: $463 | E25: $467
A26: Gross Margin, % | C26: 52.6% | E26: 52.1%
A27: Income from Operations | C27: $132 | E27: $122
A28: Operating margin, % | C28: 28.4% | E28: 26.2%
A33: Life Sciences and Applied Markets Group
C34: Q1'19 | E34: Q1'18
A35: Revenue
A36: Gross Margin, %
A37: Income from Operations
A38: Operating margin, %
A41: Diagnostics and Genomics Group
C42: =C34 -> Q1'19 | E42: =E34 -> Q1'18
A43: Revenue
A44: Gross Margin, %
A45: Income from Operations
A46: Operating margin, %
A49: Agilent CrossLab Group
C50: =C34 -> Q1'19 | E50: =E34 -> Q1'18
A51: Revenue
A52: Gross Margin, %
A53: Income from Operations
A54: Operating margin, %
A58: Income from operations reflect the results of our reportable segments under Agilent's management reporting system which are not necessarily in conformity with GAAP financial measures. Income from operations of our reporting segments exclude, among other things, charges related to amortization of intangibles, transformational initiatives, acquisition and integration costs, NASD site costs, special compliance costs and acceleration of stock-based compensation expense.
A60: Readers are reminded that non-GAAP numbers are merely a supplement to, and not a replacement for, GAAP financial measures. They should be read in conjunction with the GAAP financial measures. It should be noted as well that our non-GAAP information may be different from the non-GAAP information provided by other companies.
A62: The preliminary segment information is estimated based on our current information.
A65: Page 5

Sheet Core Revenue by Segment (QTD)
A1: AGILENT TECHNOLOGIES, INC.
A2: RECONCILIATIONS OF REVENUE BY SEGMENT EXCLUDING
A3: ACQUISITIONS, DIVESTITURES AND THE IMPACT OF CURRENCY ADJUSTMENTS (CORE)
A4: (in millions)
A5: (Unaudited)
A6: PRELIMINARY
B8: Year-over-Year
B10: GAAP
D11: Year-over-Year
A12: GAAP Revenue by Segment | B12: Q3'20 | C12: Q3'19 | D12: % Change
A14: Life Sciences and Applied Markets Group | B14: $557 | C14: $544 | D14: 2%
A15: Diagnostics and Genomics Group | B15: 241 | C15: 263 | D15: (8%)
A16: Agilent CrossLab Group | B16: 463 | C16: 467 | D16: (1%)
A17: Agilent | B17: =SUM(B14:B16) -> $1,261 | C17: =SUM(C14:C16) -> $1,274 | D17: (1%)
B22: Non-GAAP (excluding Acquisitions & Divestitures) | F22: Year-over-Year at Constant Currency (a)
D23: Year-over-Year | F23: Year-over-Year | G23: Percentage Point Impact from Currency | I23: Current Quarter Currency Impact (b)
A24: Non GAAP Revenue by Segment | B24: =B12 -> Q3'20 | C24: =C12 -> Q3'19 | D24: % Change | F24: % Change
A26: Life Sciences and Applied Markets Group | B26: $513 | C26: $544 | D26: (6%) | F26: (4%) | G26: -2 ppts | I26: $(6)
A27: Diagnostics and Genomics Group | B27: 241 | C27: 263 | D27: (8%) | F27: (8%) | G27: — | I27: (2)
A28: Agilent CrossLab Group | B28: 463 | C28: 467 | D28: (1%) | F28: 1% | G28: -2 ppts | I28: (8)
A29: Agilent (Core) | B29: =SUM(B26:B28) -> $1,217 | C29: =SUM(C26:C28) -> $1,274 | D29: (4%) | F29: (3%) | G29: -1 ppt | I29: =SUM(I26:I28) -> $(16)
A33: We compare the year-over-year change in revenue excluding the effect of recent acquisitions and divestitures and foreign currency rate fluctuations to assess the performance of our underlying business.
A35: (a) The constant currency year-over-year growth percentage is calculated by recalculating all periods in the comparison period at the foreign currency exchange rates used for accounting during the last month of the current quarter, and then using those revised values to calculate the year-over-year percentage change.
A37: (b) The dollar impact from the current quarter currency impact is equal to the total year-over-year dollar change less the constant currency year-over-year change.
A39: The preliminary reconciliation of GAAP revenue adjusted for recent acquisitions and divestitures and impact of currency is estimated based on our current information.
A45: Page 6

Sheet Core Revenue by Segment (YTD) (hidden)
A1: AGILENT TECHNOLOGIES, INC.
A2: RECONCILIATIONS OF REVENUE BY SEGMENT EXCLUDING
A3: ACQUISITIONS, DIVESTITURES AND THE IMPACT OF CURRENCY ADJUSTMENTS (CORE)
A4: (in millions)
A5: (Unaudited)
A6: PRELIMINARY
B8: Year-over-Year
B10: GAAP
D11: Year-over-Year
A12: GAAP Revenue by Segment | B12: FY18 | C12: FY17 | D12: % Change
A14: Life Sciences and Applied Markets Group
A16: Diagnostics and Genomics Group
A18: Agilent CrossLab Group
A20: Agilent | B20: =SUM(B14:B19) -> 0 | C20: =SUM(C14:C19) -> 0
B25: Non-GAAP (excluding Acquisitions & Divestitures) | F25: Year-over-Year at Constant Currency (a)
D26: Year-over-Year | F26: Year-over-Year | G26: Percentage Point Impact from Currency | I26: Current Year Currency Impact (b)
A27: Non GAAP Revenue by Segment | B27: =B12 -> FY18 | C27: =C12 -> FY17 | D27: % Change | F27: % Change
A29: Life Sciences and Applied Markets Group
A31: Diagnostics and Genomics Group
A33: Agilent CrossLab Group
A35: Agilent (Core) | B35: =SUM(B29:B34) -> 0 | C35: =SUM(C29:C34) -> 0 | I35: =SUM(I29:I34) -> 0
A39: We compare the year-over-year change in revenue excluding the effect of recent acquisitions and divestitures and foreign currency rate fluctuations to assess the performance of our underlying business.
A41: (a) The constant currency year-over-year growth percentage is calculated by recalculating all periods in the comparison period at the foreign currency exchange rates used for accounting during the last month of the current quarter, and then using those revised values to calculate the year-over-year percentage change.
A43: (b) The dollar impact from the current year currency impact is equal to the total year-over-year dollar change less the constant currency year-over-year change.
A45: The preliminary reconciliation of GAAP revenue adjusted for recent acquisitions and divestitures and impact of currency is estimated based on our current information.
A51: Page 7
